bitfinex-derivatives/quotes_SOLF0:USTF0_20250730
["timestamp","ask_amount","ask_price","bid_price","bid_amount"]
[1753887624909,5.67853578,180.24,180.11,5.67853578]
[1753887625112,3.16,180.2,180.11,5.67853578]
[1753887625314,3.16,180.2,180.11,106.36]
[1753887625812,3.16,180.18,180.14,5.5512]
[1753887626015,3.16,180.18,180.11,106.36]
[1753887626204,8.7102,180.18,180.13,5.5514]
[1753887626412,3.16,180.17,180.13,5.5514]
[1753887626819,3.16,180.17,180.11,106.36]
[1753887627219,3.16,180.17,180.16,5.5506]
[1753887627414,3.16,180.18,180.11,106.36]
[1753887627617,5.67853578,180.29,180.05,5.67853578]
[1753887627618,5.67853578,180.16,180.05,5.67853578]
[1753887627822,3.16,180.15,180.05,106.38]
[1753887628421,3.16,180.15,180.05,112.05853578]
[1753887628731,3.16,180.15,180.09,5.67853578]
[1753887628921,3.16,180.15,180.12,5.5518]
[1753887629116,3.16,180.15,180.05,106.38]
[1753887629321,3.13,180.12,180.04,378.51853578]
[1753887629522,3.13,180.12,180.05,111.9137]
[1753887629722,3.13,180.09,180.04,378.51853578]
[1753887629929,3.13,180.09,180.01,111.9549]
[1753887630122,3.13,180.09,180.02,5.67853578]
[1753887630325,3.13,180.09,180.04,5.67853578]
[1753887630519,3.13,180.09,180.07,5.5531]
[1753887630827,3.13,180.14,180.08,5.67853578]
[1753887631017,3.13,180.17,180.08,5.67853578]
[1753887631326,5.67853578,180.14,180.07,106.42]
[1753887631520,3.13,180.13,180.07,106.42]
[1753887632022,3.13,180.12,180.07,106.42]
[1753887632425,5.5519,180.12,180.07,111.9733]
[1753887632626,3.13,180.11,180.07,106.42]
[1753887632920,3.13,180.09,180.07,106.42]
[1753887633130,3.13,180.09,180.02,112.29853578]
[1753887633626,3.13,180.11,180.02,112.29853578]
[1753887634219,3.13,180.08,180.02,106.62]
[1753887634418,3.13,180.08,180.0,5.67853578]
[1753887634926,3.13,180.03,179.98,112.29853578]
[1753887635329,3.13,180.02,179.98,112.29853578]
[1753887635628,3.13,180.07,180.0,5.67853578]
[1753887635818,3.13,180.07,180.05,5.5538]
[1753887636018,3.13,180.07,180.04,5.67853578]
[1753887636230,3.13,180.07,180.03,5.67853578]
[1753887636427,5.67853578,180.08,179.97,0.96692183]
[1753887636623,5.67853578,180.08,179.97,108.14692183]
[1753887636824,3.13,180.07,180.0,5.67853578]
[1753887637430,5.5541,180.05,180.0,5.5555]
[1753887637729,3.13,180.04,179.99,5.67853578]
[1753887637923,3.13,180.03,180.0,5.5553]
[1753887638130,3.13,180.02,179.97,108.14692183]
[1753887638324,3.13,180.04,179.99,5.67853578]
[1753887638630,5.67853578,180.11,180.01,5.67853578]
[1753887638830,3.13,180.1,180.03,5.67853578]
[1753887639125,3.13,180.05,180.04,5.42356363]
[1753887639730,3.13,180.05,179.96,3.06]
[1753887640223,5.67853578,180.07,179.96,8.6167]
[1753887640424,3.13,180.06,179.95,8.73853578]
[1753887640734,3.13,180.06,179.96,3.06]
[1753887640924,3.13,180.02,179.95,5.67853578]
[1753887641222,3.13,180.02,180.0,3.06]
[1753887641433,3.13,180.06,179.97,3.06]
[1753887642126,3.13,180.03,179.99,8.6156]
[1753887642432,3.13,180.06,179.99,8.6156]
[1753887642727,3.13,180.01,179.95,8.73853578]
[1753887642931,0.35189989,180.01,179.95,8.73853578]
[1753887643427,5.67853578,180.05,179.95,5.67853578]
[1753887643630,5.67853578,180.06,179.96,3.06]
[1753887643824,384.3024,180.15,179.96,3.06]
[1753887644024,5.67853578,180.06,179.96,3.06]
[1753887644623,5.67853578,180.06,179.95,5.67853578]
[1753887644827,5.67853578,180.04,179.96,3.06]
[1753887645027,3.13,180.03,179.96,3.06]
[1753887645229,3.13,180.02,179.99,3.06]
[1753887645625,3.13,180.03,179.94,487.84555165]
[1753887645927,3.13,180.06,179.98,5.67853578]
[1753887646124,3.13,180.08,180.01,3.06]
[1753887646423,5.67853578,180.09,180.02,111.12]
[1753887646629,373.2,180.15,180.02,111.12]
[1753887646630,3.13,180.03,180.02,111.12]
[1753887646929,3.13,180.06,179.99,3.06]
[1753887647726,3.13,180.06,180.02,5.5547]
[1753887647922,3.13,180.06,179.99,5.67853578]
[1753887648126,373.2,180.15,180.01,5.67853578]
[1753887648333,3.13,180.09,180.07,3.06]
[1753887648535,5.5524,180.11,180.04,3.06]
[1753887648536,3.13,180.11,180.04,3.06]
[1753887649430,3.13,180.1,180.08,8.613]
[1753887649631,3.13,180.15,180.07,5.67853578]
[1753887649828,3.13,180.15,180.1,5.5522]
[1753887649829,8.6809,180.15,180.1,5.5522]
[1753887650024,3.13,180.15,180.08,3.06]
[1753887650425,5.67853578,180.18,180.14,5.5512]
[1753887650631,373.32,180.25,180.1,3.06]
[1753887650632,3.13,180.17,180.1,3.06]
[1753887650936,3.13,180.19,180.14,5.5512]
[1753887651135,5.67853578,180.22,180.13,3.06]
[1753887651335,3.13,180.21,180.13,3.06]
[1753887651539,3.13,180.2,180.18,3.06]
[1753887651740,3.13,180.21,180.12,3.06]
[1753887652037,5.67853578,180.2,180.14,3.06]
[1753887652238,3.13,180.18,180.16,3.06]
[1753887652438,3.13,180.2,180.17,8.47409338]
[1753887652631,3.13,180.19,180.18,5.41409338]
[1753887653035,8.6797,180.19,180.18,5.41409338]
[1753887653632,5.54,180.19,180.09,3.06]
[1753887653833,3.13,180.13,180.09,3.06]
[1753887654032,3.13,180.13,180.07,3.06]
[1753887654338,3.13,180.11,180.08,3.06]
[1753887654540,3.13,180.11,180.09,3.06]
[1753887654732,3.13,180.1,180.07,8.6131]
[1753887654932,3.13,180.09,180.07,3.06]
[1753887655130,3.13,180.11,180.05,111.04]
[1753887655336,3.13,180.09,180.05,3.06]
[1753887655532,3.13,180.06,180.0,107.92]
[1753887655728,5.5539,180.06,180.01,8.6152]
[1753887656033,3.13,180.09,180.01,3.06]
[1753887656430,5.5532,180.08,180.03,5.5544]
[1753887656631,3.13,180.07,180.05,3.06]
[1753887657436,3.13,180.08,180.06,3.06]
[1753887657741,5.67853578,180.1,180.07,3.06]
[1753887657935,8.6833,180.08,180.04,3.06]
[1753887658241,3.13,180.07,180.05,3.06]
[1753887658434,8.6834,180.07,180.05,3.06]
[1753887658630,3.13,180.07,180.05,3.06]
[1753887659036,3.21,180.09,180.03,5.5545]
[1753887659240,3.21,180.09,180.03,8.6845]
[1753887659639,3.21,180.09,180.03,3.13]
[1753887660033,5.5534,180.08,180.0,5.67853578]
[1753887660238,5.67853578,180.1,180.01,3.13]
[1753887660239,3.21,180.07,180.01,3.13]
[1753887660441,5.67853578,180.06,179.97,4.53901957]
[1753887660641,3.21,180.03,179.96,7.66901957]
[1753887660843,3.21,180.01,179.96,7.66901957]
[1753887661044,3.21,180.01,179.96,3.13]
[1753887661247,8.88853578,180.02,179.95,3.13]
[1753887661544,3.21,180.05,179.96,3.13]
[1753887661744,3.21,180.02,179.96,3.13]
[1753887662144,3.21,180.01,179.96,3.13]
[1753887662347,3.21,179.99,179.96,3.13]
[1753887662550,3.21,179.99,179.97,3.13]
[1753887662944,3.21,179.99,179.92,113.45853578]
[1753887662945,8.88853578,180.02,179.93,3.13]
[1753887663249,3.21,180.05,179.99,3.13]
[1753887663643,3.21,180.07,179.99,3.13]
[1753887663946,5.67853578,180.06,179.99,3.13]
[1753887664140,3.21,180.05,179.99,3.13]
[1753887664746,8.7641,180.05,180.0,5.5555]
[1753887665045,3.21,180.04,180.02,3.13]
[1753887665440,5.67853578,180.07,179.99,3.13]
[1753887665746,3.21,180.04,179.98,3.13]
[1753887665950,3.21,180.02,179.95,3.13]
[1753887666143,3.21,180.0,179.87,373.26]
[1753887666342,8.7657,180.0,179.95,5.5568]
[1753887666539,5.67853578,180.03,179.91,5.67853578]
[1753887666842,3.21,180.02,180.0,3.13]
[1753887667052,8.88853578,180.05,179.96,3.13]
[1753887667246,3.21,180.05,179.98,3.13]
[1753887667551,8.88853578,180.07,179.98,3.13]
[1753887667741,11.23193578,180.07,180.02,5.5546]
[1753887667940,3.21,180.04,180.0,3.13]
[1753887668147,3.21,180.06,179.98,3.13]
[1753887668350,3.21,180.09,180.0,3.13]
[1753887668553,3.21,180.08,180.0,3.13]
[1753887668852,3.21,180.06,179.99,5.67853578]
[1753887669044,3.21,180.09,180.0,3.13]
[1753887669249,3.21,180.09,180.07,8.6833]
[1753887669566,3.21,180.1,180.08,3.13]
[1753887669747,8.7625,180.1,180.08,3.13]
[1753887669947,5.67853578,180.09,180.02,3.13]
[1753887670250,5.67853578,180.07,180.02,3.13]
[1753887670449,5.67853578,180.07,179.88,0.96721744]
[1753887670450,3.21,180.04,179.97,3.13]
[1753887670647,3.21,180.02,179.96,3.13]
[1753887670853,3.21,180.0,179.96,3.13]
[1753887671040,3.21,180.03,179.96,3.13]
[1753887671241,5.67853578,180.05,179.96,3.13]
[1753887671448,8.88853578,180.05,179.96,3.13]
[1753887671744,3.21,180.04,179.96,3.13]
[1753887672147,3.21,180.04,179.97,3.13]
[1753887672551,5.5548,180.03,179.99,5.5556]
[1753887672858,3.21,180.02,179.99,8.6856]
[1753887673047,3.21,180.03,179.96,4.54472319]
[1753887673348,3.21,180.06,179.98,3.13]
[1753887673550,5.5547,180.03,179.99,5.5556]
[1753887673853,3.21,180.03,179.99,3.13]
[1753887674058,8.7651,180.02,179.99,3.13]
[1753887674246,3.21,180.01,179.99,3.13]
[1753887674547,5.67853578,180.05,179.94,10.22325897]
[1753887674757,5.5548,180.03,180.0,3.13]
[1753887675048,5.67853578,180.03,179.98,3.13]
[1753887675358,5.67853578,180.03,179.97,4.54472319]
[1753887675359,3.21,180.02,179.97,4.54472319]
[1753887675550,3.21,180.0,179.95,4.54472319]
[1753887675853,3.21,180.02,179.95,3.13]
[1753887676249,3.21,180.02,179.96,4.54472319]
[1753887676750,3.21,180.02,179.98,5.556]
[1753887676949,3.21,180.02,179.97,3.13]
[1753887677454,3.21,180.02,179.94,3.13]
[1753887677645,5.5564,179.98,179.94,3.13]
[1753887677845,3.21,180.0,179.94,3.13]
[1753887678249,3.21,179.98,179.95,8.6868]
[1753887678450,5.5558,179.99,179.94,3.13]
[1753887678649,3.21,180.0,179.94,3.13]
[1753887678848,5.5559,179.99,179.95,5.557]
[1753887679049,8.7659,179.99,179.96,3.13]
[1753887679251,8.7659,179.99,179.94,3.13]
[1753887679252,3.21,179.99,179.94,3.13]
[1753887679756,3.21,180.01,179.93,108.04]
[1753887679951,3.21,179.99,179.93,111.17]
[1753887680151,3.21,179.98,179.95,3.13]
[1753887680452,3.21,179.99,179.97,3.13]
[1753887680948,8.88853578,180.03,179.94,3.13]
[1753887681152,5.5551,180.02,179.98,5.5559]
[1753887681351,3.21,180.02,180.0,3.13]
[1753887681548,5.67853578,180.05,179.95,4.54472319]
[1753887681856,11.1025,180.14,179.96,3.13]
[1753887681857,3.21,180.01,179.96,3.13]
[1753887682348,3.21,179.98,179.95,8.687]
[1753887682545,3.21,179.98,179.95,3.13]
[1753887682952,5.556,179.99,179.95,8.687]
[1753887683148,3.21,179.97,179.95,3.13]
[1753887683353,3.21,179.97,179.95,8.687]
[1753887683747,3.21,179.99,179.94,3.13]
[1753887683950,11.23413578,180.0,179.97,5.5564]
[1753887684255,3.21,180.04,179.98,3.13]
[1753887684450,3.21,180.06,179.98,10.22325897]
[1753887684650,3.21,180.06,180.0,7.67472319]
[1753887684849,5.67853578,180.09,180.01,3.13]
[1753887685046,5.67853578,180.18,179.95,6.0537681]
[1753887685047,11.23073578,180.11,180.02,10.22325897]
[1753887685256,3.21,180.12,180.04,4.54472319]
[1753887685552,3.21,180.12,180.09,5.5526]
[1753887685751,3.21,180.12,180.09,3.13]
[1753887685958,3.21,180.11,180.09,3.13]
[1753887686150,3.21,180.08,180.05,13.22842319]
[1753887686350,3.21,180.08,180.05,8.6837]
[1753887686552,3.21,180.11,180.05,3.13]
[1753887686947,8.88853578,180.14,180.05,3.13]
[1753887687255,3.21,180.14,180.06,3.13]
[1753887687457,3.21,180.11,180.08,3.13]
[1753887687658,3.21,180.1,180.05,4.54472319]
[1753887687851,3.21,180.09,180.06,3.13]
[1753887688161,3.21,180.09,180.07,3.13]
[1753887688359,3.21,180.08,180.04,4.54472319]
[1753887688663,3.21,180.08,180.05,8.6037]
[1753887688856,3.12,180.12,180.06,3.05]
[1753887689354,8.6719,180.12,180.06,3.05]
[1753887689555,3.12,180.12,180.06,3.05]
[1753887689750,5.5525,180.1,180.07,5.5533]
[1753887690054,3.12,180.12,180.06,3.05]
[1753887690253,5.67853578,180.11,180.04,4.54472319]
[1753887690559,3.12,180.1,180.05,3.05]
[1753887690762,3.12,180.08,180.05,8.6038]
[1753887690958,3.12,180.08,180.06,3.05]
[1753887691372,5.67853578,180.11,180.04,7.59472319]
[1753887691661,3.12,180.06,180.04,7.59472319]
[1753887691856,3.12,180.1,180.05,3.05]
[1753887692163,8.6733,180.08,180.05,5.5539]
[1753887692357,5.67853578,180.11,180.04,3.05]
[1753887692658,5.5531,180.08,180.05,5.5538]
[1753887692861,8.6731,180.08,180.06,3.05]
[1753887693459,3.12,180.07,180.04,3.05]
[1753887693654,3.12,180.06,180.04,3.05]
[1753887694748,3.12,180.05,180.02,4.54472319]
[1753887694952,3.12,180.08,180.02,4.54472319]
[1753887695259,8.6732,180.08,180.06,3.05]
[1753887696156,8.6734,180.07,180.04,8.6042]
[1753887696359,3.12,180.11,180.04,3.05]
[1753887696557,3.12,180.11,180.07,5.5531]
[1753887696859,8.79853578,180.14,180.06,3.05]
[1753887697055,8.79853578,180.14,180.09,5.5525]
[1753887697258,8.6716,180.13,180.09,5.5525]
[1753887697458,3.12,180.13,180.11,3.05]
[1753887698054,5.67853578,180.12,180.07,3.05]
[1753887698263,3.12,180.09,180.07,3.05]
[1753887698461,3.12,180.08,180.05,4.54472319]
[1753887698663,3.12,180.07,180.05,3.05]
[1753887698861,3.12,180.06,180.04,3.05]
[1753887699066,3.12,180.06,180.05,5.269106]
[1753887699262,8.6737,180.06,180.05,5.269106]
[1753887699866,5.5534,180.07,180.06,3.05]
[1753887700064,3.12,180.07,180.06,5.269106]
[1753887700465,8.6734,180.07,180.06,5.269106]
[1753887701363,8.6734,180.07,180.06,6e-06]
[1753887701761,8.6734,180.07,179.99,4.57790193]
[1753887701762,5.5546,180.03,180.02,3.05]
[1753887702871,5.5552,180.02,179.99,4.57790193]
[1753887703070,5.5552,180.02,180.01,3.05]
[1753887703568,5.67853578,180.05,180.02,3.05]
[1753887703767,5.67853578,180.03,179.98,3.05]
[1753887703968,3.12,180.01,179.99,3.05]
[1753887704272,5.67853578,180.03,180.02,3.05]
[1753887704471,5.67853578,180.05,179.98,5.556]
[1753887704668,3.12,180.04,179.98,3.05]
[1753887704866,5.67853578,180.03,179.98,3.05]
[1753887705068,3.12,180.0,179.98,3.05]
[1753887705365,5.67853578,180.03,179.98,3.05]
[1753887705563,3.12,180.02,179.96,3.05]
[1753887705765,3.12,180.0,179.96,3.05]
[1753887705970,5.67853578,180.01,179.94,112.01790193]
[1753887706276,5.67853578,180.01,179.97,3.05]
[1753887706277,5.556,179.99,179.97,3.05]
[1753887706471,3.12,180.0,179.95,3.05]
[1753887706668,3.12,180.0,179.96,3.05]
[1753887706870,3.12,180.0,179.97,3.05]
[1753887707063,5.67853578,180.01,179.96,3.05]
[1753887707469,5.5556,180.0,179.97,5.5564]
[1753887707664,5.5556,180.0,179.99,3.05]
[1753887708374,3.12,180.0,179.97,3.05]
[1753887708572,3.12,180.0,179.98,3.05]
[1753887708976,3.12,180.01,179.96,3.05]
[1753887709472,5.67853578,180.02,179.96,3.05]
[1753887709672,3.12,179.99,179.96,3.05]
[1753887709974,3.12,179.99,179.94,107.44]
[1753887710175,3.12,179.99,179.97,3.05]
[1753887710779,5.5561,179.98,179.97,3.05]
[1753887711074,5.67853578,180.0,179.93,4.57790193]
[1753887711274,5.67853578,179.96,179.92,3.05]
[1753887711482,8.79853578,179.94,179.92,3.05]
[1753887711778,8.79853578,179.94,179.93,3.05]
[1753887711974,3.12,179.93,179.91,3.05]
[1753887713071,3.12,179.93,179.89,5.5588]
[1753887713072,5.5582,179.92,179.89,5.5588]
[1753887713279,3.12,179.91,179.89,3.05]
[1753887713780,3.12,179.91,179.87,8.6093]
[1753887713980,3.12,179.91,179.87,5.5593]
[1753887714182,11.23673578,179.92,179.87,3.05]
[1753887714371,8.79853578,179.92,179.86,4.57790193]
[1753887714572,3.12,179.91,179.89,3.05]
[1753887715079,8.6788,179.9,179.88,3.05]
[1753887715272,5.67853578,179.9,179.87,3.05]
[1753887715479,3.12,179.89,179.87,3.05]
[1753887715678,5.5592,179.88,179.87,3.05]
[1753887716078,8.79853578,179.88,179.85,3.05]
[1753887716383,3.12,179.85,179.82,3.05]
[1753887716675,5.67853578,179.86,179.8,3.05]
[1753887717083,8.79853578,179.83,179.78,3.05]
[1753887717281,8.6811,179.82,179.79,3.05]
[1753887717484,5.67853578,179.83,179.74,4.57790193]
[1753887717672,5.67853578,179.84,179.76,3.05]
[1753887717873,5.67853578,179.82,179.74,4.57790193]
[1753887718076,5.67853578,179.82,179.73,4.57790193]
[1753887718282,5.5616,179.81,179.72,0.96814578]
[1753887718484,5.67853578,179.83,179.72,5.54604771]
[1753887718784,11.23933578,179.83,179.78,5.562]
[1753887719176,5.67853578,179.83,179.73,5.67853578]
[1753887719379,5.5614,179.81,179.72,0.96814578]
[1753887719584,5.67853578,179.83,179.72,6.64668156]
[1753887719987,5.67853578,179.83,179.79,5.562]
[1753887720282,5.67853578,179.83,179.72,11.22458349]
[1753887720488,5.67853578,179.83,179.72,6.64668156]
[1753887720678,5.67853578,179.83,179.72,0.96814578]
[1753887720881,5.67853578,179.78,179.73,5.5637]
[1753887721184,5.67853578,179.74,179.66,4.57790193]
[1753887721386,5.67853578,179.85,179.64,4.57790193]
[1753887721387,5.67853578,179.72,179.64,4.57790193]
[1753887721686,5.67853578,179.85,179.65,5.67853578]
[1753887721687,5.67853578,179.76,179.65,5.67853578]
[1753887721989,5.67853578,179.85,179.67,5.67853578]
[1753887722176,85.41829979,179.91,179.73,5.67853578]
[1753887722385,5.67853578,179.85,179.73,5.67853578]
[1753887722788,5.67853578,179.81,179.72,106.8]
[1753887722979,5.67853578,179.81,179.76,5.5628]
[1753887723183,5.67853578,179.81,179.76,3.26]
[1753887723382,5.67853578,179.77,179.71,3.26]
[1753887723686,5.67853578,179.73,179.65,3.26]
[1753887723882,5.67853578,179.75,179.65,8.93853578]
[1753887724081,5.67853578,179.78,179.67,5.67853578]
[1753887724284,5.67853578,179.8,179.7,3.26]
[1753887724595,5.67853578,179.82,179.73,3.26]
[1753887725378,84.01337624,179.86,179.73,3.26]
[1753887725578,5.67853578,179.83,179.72,5.67853578]
[1753887725888,5.67853578,179.83,179.76,3.26]
[1753887726087,5.67853578,179.83,179.65,16.67]
[1753887726283,5.67853578,179.83,179.75,3.26]
[1753887726480,5.5617,179.8,179.76,5.5628]
[1753887726689,5.67853578,179.81,179.76,3.26]
[1753887726882,5.67853578,179.82,179.76,3.26]
[1753887727485,5.67853578,179.82,179.74,3.26]
[1753887727688,5.5619,179.8,179.76,5.5627]
[1753887727989,5.67853578,179.8,179.74,3.26]
[1753887728179,5.67853578,179.78,179.74,3.26]
[1753887728380,5.67853578,179.85,179.64,0.96864432]
[1753887728381,5.67853578,179.76,179.64,0.96864432]
[1753887728580,5.67853578,179.73,179.65,3.26]
[1753887728786,5.67853578,179.71,179.66,3.26]
[1753887729092,5.67853578,179.71,179.67,3.26]
[1753887729286,5.67853578,179.71,179.65,3.26]
[1753887729685,5.5653,179.69,179.65,8.826]
[1753887729887,5.67853578,179.71,179.65,3.26]
[1753887730082,11.1228,179.81,179.65,3.26]
[1753887730287,5.5656,179.68,179.65,3.26]
[1753887730486,11.24413578,179.68,179.65,3.26]
[1753887730688,5.67853578,179.68,179.65,3.26]
[1753887731085,5.67853578,179.68,179.6,3.26]
[1753887731287,5.5675,179.62,179.6,3.26]
[1753887731484,5.5675,179.62,179.58,3.26]
[1753887731485,5.67853578,179.62,179.58,3.26]
[1753887731796,124.0,179.75,179.52,3.26]
[1753887731989,5.67853578,179.74,179.61,3.26]
[1753887732192,5.67853578,179.66,179.56,3.26]
[1753887732584,5.67853578,179.67,179.57,5.67853578]
[1753887732784,11.1221,179.82,179.65,3.26]
[1753887732989,5.67853578,179.74,179.71,5.5643]
[1753887733185,114.01853578,179.85,179.67,3.26]
[1753887733186,5.67853578,179.76,179.67,3.26]
[1753887733595,5.67853578,179.74,179.68,5.5652]
[1753887733895,5.67853578,179.74,179.67,3.26]
[1753887734094,11.24213578,179.74,179.67,3.26]
[1753887734685,5.5639,179.73,179.7,3.26]
[1753887734891,5.67853578,179.74,179.64,3.26]
[1753887735189,5.5637,179.74,179.7,3.26]
[1753887735393,5.67853578,179.73,179.7,3.26]
[1753887735595,5.67853578,179.71,179.63,3.26]
[1753887736089,5.67853578,179.67,179.63,3.26]
[1753887736296,5.67853578,179.69,179.66,3.26]
[1753887736491,5.67853578,179.71,179.68,3.26]
[1753887736694,108.3,179.82,179.69,3.26]
[1753887736892,11.24253578,179.73,179.69,3.26]
[1753887737092,5.67853578,179.77,179.68,3.26]
[1753887737290,5.67853578,179.79,179.68,3.26]
[1753887737494,5.67853578,179.79,179.7,3.26]
[1753887737887,5.67853578,179.79,179.75,3.26]
[1753887738090,5.67853578,179.79,179.72,3.26]
[1753887738290,5.67853578,179.8,179.72,3.26]
[1753887738891,5.5621,179.79,179.75,5.5631]
[1753887739091,5.67853578,179.8,179.75,3.26]
[1753887739397,5.5617,179.8,179.76,5.5626]
[1753887739598,5.67853578,179.81,179.72,3.26]
[1753887740091,5.5618,179.8,179.76,8.8227]
[1753887740287,5.67853578,179.81,179.76,8.8227]
[1753887740488,5.67853578,179.79,179.72,3.26]
[1753887740990,373.84,179.83,179.72,3.26]
[1753887741299,373.84,179.83,179.71,5.67853578]
[1753887741300,84.01337624,179.86,179.78,3.26]
[1753887741497,5.67853578,179.83,179.78,3.26]
[1753887741991,84.01337624,179.86,179.76,5.67853578]
[1753887742186,84.01337624,179.86,179.83,8.8205]
[1753887742390,84.01337624,179.86,179.8,3.26]
[1753887742596,87.12337624,179.86,179.8,3.26]
[1753887742793,5.67853578,179.88,179.8,3.26]
[1753887743191,8.78853578,179.88,179.8,3.26]
[1753887743390,3.11,179.87,179.8,3.26]
[1753887743590,3.11,179.85,179.82,3.26]
[1753887743795,5.67853578,179.84,179.76,3.26]
[1753887744093,374.02,179.93,179.74,3.26]
[1753887744094,3.11,179.77,179.74,3.26]
[1753887744291,8.78853578,179.76,179.67,3.26]
[1753887744486,5.67853578,179.85,179.62,503.61960193]
[1753887744487,8.6721,179.79,179.62,499.0417]
[1753887744691,8.6721,179.79,179.71,3.26]
[1753887745186,5.67853578,179.82,179.71,3.26]
[1753887745393,3.11,179.81,179.71,3.26]
[1753887745690,8.78853578,179.84,179.74,5.67853578]
[1753887745890,8.78853578,179.84,179.75,3.26]
[1753887746089,5.5602,179.85,179.77,3.26]
[1753887746292,5.67853578,179.86,179.77,3.26]
[1753887746692,5.5608,179.83,179.8,5.5616]
[1753887746892,8.6708,179.83,179.8,3.26]
[1753887747094,3.11,179.82,179.75,3.26]
[1753887747290,5.67853578,179.84,179.78,3.26]
[1753887747291,3.11,179.81,179.78,3.26]
[1753887747494,3.11,179.81,179.73,3.26]
[1753887747690,8.6714,179.81,179.78,5.5622]
[1753887747900,3.11,179.83,179.73,3.26]
[1753887748096,3.11,179.83,179.75,3.26]
[1753887748293,5.5614,179.81,179.75,3.26]
[1753887748490,5.67853578,179.84,179.75,3.26]
[1753887748792,5.5611,179.82,179.8,3.26]
[1753887748996,3.03,179.85,179.75,5.67853578]
[1753887749198,3.03,179.85,179.76,3.26]
[1753887749500,5.5604,179.84,179.76,3.26]
[1753887749796,5.5604,179.84,179.79,5.5618]
[1753887749995,3.03,179.82,179.79,8.8218]
[1753887750299,3.03,179.82,179.76,3.26]
[1753887750497,5.67853578,179.86,179.81,3.26]
[1753887750890,3.03,179.84,179.81,3.26]
[1753887751293,3.03,179.83,179.81,3.26]
[1753887751497,5.67853578,179.84,179.78,3.26]
[1753887751694,3.03,179.82,179.78,3.26]
[1753887751897,8.70853578,179.84,179.73,5.67853578]
[1753887752094,5.5598,179.86,179.82,5.5608]
[1753887752300,8.5898,179.86,179.83,3.26]
[1753887752498,3.03,179.85,179.83,3.26]
[1753887752694,3.03,179.83,179.81,3.26]
[1753887752900,8.70853578,179.85,179.76,3.26]
[1753887753302,14.26863578,179.85,179.76,3.26]
[1753887753499,5.67853578,179.83,179.76,3.26]
[1753887753699,3.03,179.81,179.78,3.26]
[1753887753898,3.03,179.84,179.75,3.26]
[1753887754195,8.5897,179.87,179.83,5.5605]
[1753887754400,3.03,179.86,179.84,3.26]
[1753887754597,4.6583088,180.0,179.84,3.26]
[1753887754798,16.66,180.06,179.85,3.26]
[1753887754799,8.5875,179.94,179.85,3.26]
[1753887754999,3.03,179.94,179.85,3.26]
[1753887755403,5.5579,179.93,179.89,5.5587]
[1753887755606,3.03,179.92,179.89,8.8187]
[1753887755800,11.23493578,179.97,179.93,5.5576]
[1753887756104,3.03,179.98,179.88,5.67853578]
[1753887756298,3.03,179.98,179.91,3.26]